[Event "Titled Tuesday Blitz May 9 Early 2023"]
[White "Balint, Vilmos"]
[Black "MKlose11"]
[WhiteFideId "718050"]
[WhiteElo "2034"]
[BlackElo "2603"]
[Result "0-1"]
[Round "11"]
[TimeControl "180+2"]
[Date "2023.05.09"]
[WhiteClock "0:01:03"]
[BlackClock "0:00:56"]

1. e4 {[%clk 0:03:00]}  e6 {[%clk 0:02:57]} 2. d4 {[%clk 0:03:00]}  d5 {[%clk 0:02:57]} 3. Nc3 {[%clk 0:03:01]}  Bb4 {[%clk 0:02:57]} 4. e5 {[%clk 0:03:00]}  Ne7 {[%clk 0:02:56]} 5. Qg4 {[%clk 0:02:58]}  g6 {[%clk 0:02:54]} 6. f4 {[%clk 0:02:53]}  c5 {[%clk 0:02:54]} 7. Ne2 {[%clk 0:02:52]}  Nbc6 {[%clk 0:02:53]} 8. Be3 {[%clk 0:02:51]}  Nf5 {[%clk 0:02:37]} 9. Bf2 {[%clk 0:02:45]}  cxd4 {[%clk 0:02:37]} 10. a3 {[%clk 0:02:43]}  dxc3 {[%clk 0:02:35]} 11. axb4 {[%clk 0:02:43]}  Nxb4 {[%clk 0:02:31]} 12. Kd1 {[%clk 0:02:33]}  cxb2 {[%clk 0:02:30]} 13. Rb1 {[%clk 0:02:32]}  Qa5 {[%clk 0:02:16]} 14. Qf3 {[%clk 0:02:22]}  Qa4 {[%clk 0:02:09]} 15. Qb3 {[%clk 0:02:06]}  Qxb3 {[%clk 0:02:08]} 16. cxb3 {[%clk 0:02:07]}  Bd7 {[%clk 0:02:08]} 17. g4 {[%clk 0:02:07]}  Ne7 {[%clk 0:02:07]} 18. Nd4 {[%clk 0:02:06]}  Nec6 {[%clk 0:02:02]} 19. Nb5 {[%clk 0:02:05]}  O-O {[%clk 0:02:00]} 20. Rxb2 {[%clk 0:02:04]}  f6 {[%clk 0:02:01]} 21. Bc5 {[%clk 0:02:01]}  fxe5 {[%clk 0:01:46]} 22. Bxf8 {[%clk 0:02:00]}  Rxf8 {[%clk 0:01:47]} 23. fxe5 {[%clk 0:02:01]}  Nxe5 {[%clk 0:01:47]} 24. Nd6 {[%clk 0:02:00]}  Nxg4 {[%clk 0:01:44]} 25. Kc1 {[%clk 0:01:50]}  a6 {[%clk 0:01:36]} 26. Nxb7 {[%clk 0:01:48]}  Nf2 {[%clk 0:01:35]} 27. Rg1 {[%clk 0:01:47]}  Nfd3+ {[%clk 0:01:35]} 28. Kb1 {[%clk 0:01:42]}  Nxb2 {[%clk 0:01:35]} 29. Kxb2 {[%clk 0:01:43]}  e5 {[%clk 0:01:10]} 30. Nc5 {[%clk 0:01:39]}  Bb5 {[%clk 0:01:10]} 31. Bh3 {[%clk 0:01:28]}  Rf2+ {[%clk 0:01:05]} 32. Kb1 {[%clk 0:01:29]}  a5 {[%clk 0:01:00]} 33. Rd1 {[%clk 0:01:14]}  Kg7 {[%clk 0:00:56]} 34. Ne6+ {[%clk 0:01:11]}  Kh6 {[%clk 0:00:55]} 35. Nc7 {[%clk 0:01:09]}  Bd3+ {[%clk 0:00:55]} 36. Rxd3 {[%clk 0:01:05]}  Nxd3 {[%clk 0:00:56]} 37. Nxd5 {[%clk 0:01:03]}  Rxh2 {[%clk 0:00:56]} 0-1


[Site "https://www.chess.com"]

[Event "Titled Tuesday Blitz May 9 Early 2023"]
[White "bubeliang"]
[Black "Jaskolka, Tomasz"]
[BlackFideId "1170791"]
[WhiteElo "2636"]
[BlackElo "2155"]
[Result "0-1"]
[Round "11"]
[TimeControl "180+2"]
[Date "2023.05.09"]
[WhiteClock "0:00:17"]
[BlackClock "0:00:14"]

1. e4 {[%clk 0:03:00]}  e6 {[%clk 0:03:00]} 2. d3 {[%clk 0:02:59]}  d5 {[%clk 0:03:00]} 3. Qe2 {[%clk 0:02:59]}  Ne7 {[%clk 0:02:55]} 4. Nf3 {[%clk 0:02:59]}  g6 {[%clk 0:02:56]} 5. h4 {[%clk 0:02:57]}  h6 {[%clk 0:02:55]} 6. g3 {[%clk 0:02:56]}  Bg7 {[%clk 0:02:55]} 7. Bg2 {[%clk 0:02:56]}  c5 {[%clk 0:02:55]} 8. O-O {[%clk 0:02:56]}  Nbc6 {[%clk 0:02:56]} 9. e5 {[%clk 0:02:54]}  b6 {[%clk 0:02:55]} 10. c3 {[%clk 0:02:53]}  a5 {[%clk 0:02:55]} 11. c4 {[%clk 0:02:52]}  Bb7 {[%clk 0:02:35]} 12. Nc3 {[%clk 0:02:50]}  O-O {[%clk 0:02:18]} 13. Bf4 {[%clk 0:02:47]}  Kh7 {[%clk 0:02:16]} 14. Rad1 {[%clk 0:02:43]}  Nf5 {[%clk 0:02:09]} 15. Nb5 {[%clk 0:02:22]}  Qd7 {[%clk 0:01:58]} 16. g4 {[%clk 0:02:17]}  Nfd4 {[%clk 0:01:57]} 17. Nfxd4 {[%clk 0:02:17]}  Nxd4 {[%clk 0:01:58]} 18. Nxd4 {[%clk 0:02:17]}  cxd4 {[%clk 0:01:58]} 19. Rc1 {[%clk 0:02:03]}  dxc4 {[%clk 0:01:55]} 20. Rxc4 {[%clk 0:02:02]}  Bxg2 {[%clk 0:01:55]} 21. Kxg2 {[%clk 0:02:03]}  Rfc8 {[%clk 0:01:49]} 22. Rfc1 {[%clk 0:02:02]}  Rxc4 {[%clk 0:01:49]} 23. Rxc4 {[%clk 0:02:03]}  Rc8 {[%clk 0:01:49]} 24. b3 {[%clk 0:01:58]}  b5 {[%clk 0:01:44]} 25. Rxc8 {[%clk 0:01:56]}  Qxc8 {[%clk 0:01:44]} 26. Qe4 {[%clk 0:01:56]}  Qc5 {[%clk 0:01:18]} 27. h5 {[%clk 0:01:50]}  a4 {[%clk 0:01:18]} 28. bxa4 {[%clk 0:01:50]}  bxa4 {[%clk 0:01:18]} 29. Qb7 {[%clk 0:01:49]}  gxh5 {[%clk 0:00:41]} 30. gxh5 {[%clk 0:01:42]}  Kg8 {[%clk 0:00:42]} 31. Qb8+ {[%clk 0:01:36]}  Kh7 {[%clk 0:00:42]} 32. Qe8 {[%clk 0:01:34]}  Qd5+ {[%clk 0:00:41]} 33. Kg1 {[%clk 0:01:34]}  Qxa2 {[%clk 0:00:40]} 34. Qxf7 {[%clk 0:01:33]}  Qb1+ {[%clk 0:00:41]} 35. Kg2 {[%clk 0:01:32]}  Qxd3 {[%clk 0:00:41]} 36. Qxe6 {[%clk 0:01:18]}  Qe4+ {[%clk 0:00:41]} 37. Kg3 {[%clk 0:01:19]}  Qd3+ {[%clk 0:00:34]} 38. f3 {[%clk 0:01:17]}  a3 {[%clk 0:00:33]} 39. Qf7 {[%clk 0:01:14]}  Qb1 {[%clk 0:00:24]} 40. e6 {[%clk 0:01:10]}  a2 {[%clk 0:00:24]} 41. e7 {[%clk 0:01:02]}  Qg1+ {[%clk 0:00:23]} 42. Kh3 {[%clk 0:01:01]}  a1=Q {[%clk 0:00:20]} 43. Qg6+ {[%clk 0:01:00]}  Qxg6 {[%clk 0:00:19]} 44. hxg6+ {[%clk 0:01:01]}  Kxg6 {[%clk 0:00:19]} 45. e8=Q+ {[%clk 0:01:02]}  Kf5 {[%clk 0:00:16]} 46. Qe4+ {[%clk 0:00:55]}  Kf6 {[%clk 0:00:16]} 47. Be5+ {[%clk 0:00:55]}  Kf7 {[%clk 0:00:16]} 48. Qd5+ {[%clk 0:00:38]}  Kg6 {[%clk 0:00:17]} 49. Qe4+ {[%clk 0:00:35]}  Kf7 {[%clk 0:00:17]} 50. Qb7+ {[%clk 0:00:26]}  Ke6 {[%clk 0:00:14]} 51. Bxg7 {[%clk 0:00:25]}  Qh1+ {[%clk 0:00:14]} 52. Kg3 {[%clk 0:00:25]}  Qg1+ {[%clk 0:00:15]} 53. Kh4 {[%clk 0:00:23]}  Qh2+ {[%clk 0:00:12]} 54. Kg4 {[%clk 0:00:23]}  Qg2+ {[%clk 0:00:11]} 55. Kf4 {[%clk 0:00:22]}  Qd2+ {[%clk 0:00:12]} 56. Kg3 {[%clk 0:00:22]}  Qe1+ {[%clk 0:00:12]} 57. Kg2 {[%clk 0:00:22]}  Qe2+ {[%clk 0:00:12]} 58. Kh3 {[%clk 0:00:22]}  Qf1+ {[%clk 0:00:13]} 59. Kh4 {[%clk 0:00:20]}  Qh1+ {[%clk 0:00:13]} 60. Kg4 {[%clk 0:00:19]}  Qg1+ {[%clk 0:00:13]} 61. Kf4 {[%clk 0:00:18]}  Qg5+ {[%clk 0:00:13]} 62. Ke4 {[%clk 0:00:17]}  Qe3# {[%clk 0:00:14]} 0-1


[Site "https://www.chess.com"]

[Event "Titled Tuesday Blitz May 9 Early 2023"]
[White "Liu, Casper"]
[Black "Ismagilov, Damir"]
[WhiteFideId "1454153"]
[BlackFideId "34199982"]
[WhiteElo "2221"]
[BlackElo "2143"]
[Result "0-1"]
[Round "11"]
[TimeControl "180+2"]
[Date "2023.05.09"]
[WhiteClock "0:01:27"]
[BlackClock "0:01:59"]

1. d4 {[%clk 0:02:51]}  Nf6 {[%clk 0:02:59]} 2. Bf4 {[%clk 0:02:52]}  e6 {[%clk 0:02:52]} 3. e3 {[%clk 0:02:52]}  c5 {[%clk 0:02:51]} 4. Nf3 {[%clk 0:02:52]}  cxd4 {[%clk 0:02:40]} 5. exd4 {[%clk 0:02:52]}  b6 {[%clk 0:02:41]} 6. Nbd2 {[%clk 0:02:51]}  Bb7 {[%clk 0:02:41]} 7. Nc4 {[%clk 0:02:50]}  d6 {[%clk 0:02:32]} 8. c3 {[%clk 0:02:43]}  Be7 {[%clk 0:02:29]} 9. Qa4+ {[%clk 0:02:27]}  Bc6 {[%clk 0:02:26]} 10. Qa3 {[%clk 0:01:57]}  Ne4 {[%clk 0:02:25]} 11. Qb3 {[%clk 0:01:32]}  O-O {[%clk 0:02:15]} 12. Bd3 {[%clk 0:01:32]}  b5 {[%clk 0:02:04]} 13. Na5 {[%clk 0:01:27]}  Qxa5 {[%clk 0:01:59]} 0-1


[Site "https://www.chess.com"]

[Event "Titled Tuesday Blitz May 9 Early 2023"]
[White "Bruedigam, Martin"]
[Black "Gutkin, Ilya"]
[WhiteFideId "24608033"]
[BlackFideId "16203470"]
[WhiteElo "2331"]
[BlackElo "2265"]
[Result "1/2-1/2"]
[Round "11"]
[TimeControl "180+2"]
[Date "2023.05.09"]
[WhiteClock "0:00:09"]
[BlackClock "0:00:03"]

1. d4 {[%clk 0:03:00]}  e6 {[%clk 0:02:58]} 2. c4 {[%clk 0:03:00]}  Bb4+ {[%clk 0:02:57]} 3. Nc3 {[%clk 0:02:57]}  c5 {[%clk 0:02:57]} 4. dxc5 {[%clk 0:02:55]}  Bxc5 {[%clk 0:02:57]} 5. Nf3 {[%clk 0:02:54]}  Nf6 {[%clk 0:02:57]} 6. g3 {[%clk 0:02:53]}  O-O {[%clk 0:02:48]} 7. Bg2 {[%clk 0:02:53]}  d5 {[%clk 0:02:42]} 8. cxd5 {[%clk 0:02:52]}  exd5 {[%clk 0:02:43]} 9. O-O {[%clk 0:02:52]}  Nc6 {[%clk 0:02:41]} 10. Bg5 {[%clk 0:02:50]}  Be6 {[%clk 0:02:36]} 11. Rc1 {[%clk 0:02:44]}  Bb6 {[%clk 0:02:34]} 12. Na4 {[%clk 0:02:40]}  Bc7 {[%clk 0:02:25]} 13. Nc5 {[%clk 0:02:38]}  Bc8 {[%clk 0:02:08]} 14. Qb3 {[%clk 0:02:22]}  Bb6 {[%clk 0:02:03]} 15. Rfd1 {[%clk 0:02:21]}  h6 {[%clk 0:01:58]} 16. Bxf6 {[%clk 0:02:07]}  Qxf6 {[%clk 0:01:59]} 17. Rxd5 {[%clk 0:02:06]}  Re8 {[%clk 0:01:46]} 18. e3 {[%clk 0:01:56]}  Bg4 {[%clk 0:01:44]} 19. Nd7 {[%clk 0:01:44]}  Bxd7 {[%clk 0:01:17]} 20. Rxd7 {[%clk 0:01:45]}  Re7 {[%clk 0:01:09]} 21. Rcd1 {[%clk 0:01:38]}  Rae8 {[%clk 0:01:02]} 22. a3 {[%clk 0:01:23]}  g6 {[%clk 0:00:56]} 23. Rxe7 {[%clk 0:01:23]}  Rxe7 {[%clk 0:00:55]} 24. Rd2 {[%clk 0:01:16]}  Na5 {[%clk 0:00:43]} 25. Qd3 {[%clk 0:01:08]}  Rc7 {[%clk 0:00:40]} 26. h4 {[%clk 0:00:57]}  Rc1+ {[%clk 0:00:33]} 27. Kh2 {[%clk 0:00:57]}  Nc4 {[%clk 0:00:29]} 28. Rc2 {[%clk 0:00:35]}  Nxb2 {[%clk 0:00:20]} 29. Qe2 {[%clk 0:00:33]}  Rxc2 {[%clk 0:00:15]} 30. Qxc2 {[%clk 0:00:30]}  Kg7 {[%clk 0:00:10]} 31. Ng1 {[%clk 0:00:25]}  Ba5 {[%clk 0:00:08]} 32. Bxb7 {[%clk 0:00:22]}  Qc3 {[%clk 0:00:05]} 33. Qxc3+ {[%clk 0:00:19]}  Bxc3 {[%clk 0:00:06]} 34. Bd5 {[%clk 0:00:16]}  Nd3 {[%clk 0:00:05]} 35. Kg2 {[%clk 0:00:15]}  Be1 {[%clk 0:00:04]} 36. Nh3 {[%clk 0:00:15]}  Bd2 {[%clk 0:00:03]} 37. Kf1 {[%clk 0:00:15]}  Bc1 {[%clk 0:00:03]} 38. a4 {[%clk 0:00:14]}  Nc5 {[%clk 0:00:03]} 39. Bc6 {[%clk 0:00:14]}  Kf6 {[%clk 0:00:03]} 40. Kg2 {[%clk 0:00:13]}  Ke5 {[%clk 0:00:03]} 41. g4 {[%clk 0:00:13]}  Kd6 {[%clk 0:00:03]} 42. Be8 {[%clk 0:00:14]}  Ke7 {[%clk 0:00:03]} 43. Bb5 {[%clk 0:00:14]}  a6 {[%clk 0:00:03]} 44. Bc4 {[%clk 0:00:13]}  Nxa4 {[%clk 0:00:02]} 45. Bxa6 {[%clk 0:00:14]}  Nc5 {[%clk 0:00:02]} 46. Bc4 {[%clk 0:00:14]}  Nd7 {[%clk 0:00:02]} 47. Nf4 {[%clk 0:00:14]}  Ne5 {[%clk 0:00:02]} 48. Ba2 {[%clk 0:00:13]}  Nxg4 {[%clk 0:00:02]} 49. Kf3 {[%clk 0:00:12]}  Ne5+ {[%clk 0:00:01]} 50. Kg2 {[%clk 0:00:12]}  Nd7 {[%clk 0:00:02]} 51. Kf3 {[%clk 0:00:12]}  Ba3 {[%clk 0:00:02]} 52. Nd5+ {[%clk 0:00:11]}  Kf8 {[%clk 0:00:02]} 53. Bb3 {[%clk 0:00:10]}  Bd6 {[%clk 0:00:03]} 54. Kg2 {[%clk 0:00:10]}  Ne5 {[%clk 0:00:03]} 55. Ba2 {[%clk 0:00:10]}  Be7 {[%clk 0:00:03]} 56. Kh3 {[%clk 0:00:08]}  Bd6 {[%clk 0:00:03]} 57. f4 {[%clk 0:00:08]}  Nd3 {[%clk 0:00:03]} 58. Kg3 {[%clk 0:00:08]}  Nc5 {[%clk 0:00:03]} 59. Bc4 {[%clk 0:00:08]}  Ne4+ {[%clk 0:00:02]} 60. Kg2 {[%clk 0:00:08]}  Nc5 {[%clk 0:00:03]} 61. Kg3 {[%clk 0:00:08]}  Ne4+ {[%clk 0:00:02]} 62. Kg2 {[%clk 0:00:09]}  Nc5 {[%clk 0:00:03]} 63. Kg3 {[%clk 0:00:09]} 1/2-1/2


[Site "https://www.chess.com"]

[Event "Titled Tuesday Blitz May 9 Early 2023"]
[White "Gontcharov, Vladislav"]
[Black "Titichoca Daza, Daniel"]
[WhiteFideId "4123492"]
[BlackFideId "3309550"]
[WhiteElo "2420"]
[BlackElo "2101"]
[Result "0-1"]
[Round "11"]
[TimeControl "180+2"]
[Date "2023.05.09"]
[WhiteClock "0:00:00"]
[BlackClock "0:00:31"]

1. d4 {[%clk 0:03:00]}  d5 {[%clk 0:02:56]} 2. c4 {[%clk 0:03:00]}  dxc4 {[%clk 0:02:55]} 3. Nf3 {[%clk 0:02:59]}  Nf6 {[%clk 0:02:51]} 4. e3 {[%clk 0:02:59]}  e6 {[%clk 0:02:47]} 5. Bxc4 {[%clk 0:02:58]}  a6 {[%clk 0:02:46]} 6. O-O {[%clk 0:02:57]}  c5 {[%clk 0:02:46]} 7. Nc3 {[%clk 0:02:48]}  b5 {[%clk 0:02:44]} 8. Bb3 {[%clk 0:02:48]}  Bb7 {[%clk 0:02:43]} 9. Qe2 {[%clk 0:02:42]}  Nbd7 {[%clk 0:02:39]} 10. Rd1 {[%clk 0:02:41]}  Qb6 {[%clk 0:02:27]} 11. e4 {[%clk 0:02:14]}  cxd4 {[%clk 0:02:24]} 12. Nxd4 {[%clk 0:02:12]}  Bc5 {[%clk 0:02:25]} 13. Be3 {[%clk 0:01:59]}  h5 {[%clk 0:02:21]} 14. h3 {[%clk 0:01:42]}  Rg8 {[%clk 0:02:10]} 15. a4 {[%clk 0:01:39]}  g5 {[%clk 0:01:51]} 16. axb5 {[%clk 0:01:35]}  axb5 {[%clk 0:01:47]} 17. Rxa8+ {[%clk 0:01:34]}  Bxa8 {[%clk 0:01:48]} 18. Qxb5 {[%clk 0:01:31]}  Qxb5 {[%clk 0:01:45]} 19. Ncxb5 {[%clk 0:01:20]}  Bxe4 {[%clk 0:01:42]} 20. Nc3 {[%clk 0:01:11]}  Bb7 {[%clk 0:01:35]} 21. Ba4 {[%clk 0:01:11]}  Ke7 {[%clk 0:01:33]} 22. Re1 {[%clk 0:01:09]}  g4 {[%clk 0:01:30]} 23. hxg4 {[%clk 0:01:01]}  Rxg4 {[%clk 0:01:29]} 24. Nf5+ {[%clk 0:00:44]}  Kf8 {[%clk 0:01:26]} 25. Bxc5+ {[%clk 0:00:21]}  Nxc5 {[%clk 0:01:26]} 26. Ne3 {[%clk 0:00:22]}  Rxa4 {[%clk 0:01:22]} 27. Nxa4 {[%clk 0:00:22]}  Nxa4 {[%clk 0:01:23]} 28. b4 {[%clk 0:00:22]}  Nc3 {[%clk 0:01:16]} 29. Kh2 {[%clk 0:00:22]}  Nfd5 {[%clk 0:01:11]} 30. Nxd5 {[%clk 0:00:22]}  Nxd5 {[%clk 0:01:12]} 31. b5 {[%clk 0:00:22]}  Ke7 {[%clk 0:01:08]} 32. Rc1 {[%clk 0:00:21]}  Kd6 {[%clk 0:01:07]} 33. Rc4 {[%clk 0:00:19]}  e5 {[%clk 0:01:04]} 34. Rh4 {[%clk 0:00:18]}  Nf6 {[%clk 0:00:59]} 35. f3 {[%clk 0:00:17]}  Kc5 {[%clk 0:00:56]} 36. Rh3 {[%clk 0:00:13]}  Kxb5 {[%clk 0:00:55]} 37. Rg3 {[%clk 0:00:14]}  Kc5 {[%clk 0:00:52]} 38. Rg7 {[%clk 0:00:13]}  Bd5 {[%clk 0:00:50]} 39. Kg3 {[%clk 0:00:13]}  Be6 {[%clk 0:00:45]} 40. Kh4 {[%clk 0:00:13]}  Kd4 {[%clk 0:00:43]} 41. Kg5 {[%clk 0:00:13]}  Nd5 {[%clk 0:00:42]} 42. Kxh5 {[%clk 0:00:11]}  Ke3 {[%clk 0:00:39]} 43. Kh4 {[%clk 0:00:10]}  Kf2 {[%clk 0:00:36]} 44. Rg5 {[%clk 0:00:08]}  Nf4 {[%clk 0:00:33]} 45. Rxe5 {[%clk 0:00:00]}  Ng6+ {[%clk 0:00:31]} 0-1


[Site "https://www.chess.com"]

[Event "Titled Tuesday Blitz May 9 Early 2023"]
[White "Janaszak, Dawid"]
[Black "Vivas Zamora, Fabian Ernesto"]
[WhiteFideId "1119206"]
[BlackFideId "3902480"]
[WhiteElo "2220"]
[BlackElo "2244"]
[Result "1-0"]
[Round "11"]
[TimeControl "180+2"]
[Date "2023.05.09"]
[WhiteClock "0:00:04"]
[BlackClock "0:00:00"]

1. e4 {[%clk 0:02:01]}  c5 {[%clk 0:02:13]} 2. Nc3 {[%clk 0:02:00]}  d6 {[%clk 0:02:10]} 3. f4 {[%clk 0:01:59]}  g6 {[%clk 0:02:06]} 4. Nf3 {[%clk 0:02:00]}  Bg7 {[%clk 0:02:07]} 5. Bc4 {[%clk 0:02:00]}  Nc6 {[%clk 0:02:04]} 6. O-O {[%clk 0:02:00]}  e6 {[%clk 0:02:02]} 7. d4 {[%clk 0:02:00]}  cxd4 {[%clk 0:01:57]} 8. Nb5 {[%clk 0:02:00]}  Nge7 {[%clk 0:01:50]} 9. Bb3 {[%clk 0:01:59]}  O-O {[%clk 0:01:44]} 10. Nbxd4 {[%clk 0:01:59]}  Nxd4 {[%clk 0:01:37]} 11. Nxd4 {[%clk 0:01:59]}  Nc6 {[%clk 0:01:03]} 12. c3 {[%clk 0:01:55]}  a6 {[%clk 0:00:56]} 13. Kh1 {[%clk 0:01:43]}  Qc7 {[%clk 0:00:47]} 14. Be3 {[%clk 0:01:29]}  b5 {[%clk 0:00:44]} 15. f5 {[%clk 0:01:25]}  Nxd4 {[%clk 0:00:42]} 16. Bxd4 {[%clk 0:01:21]}  exf5 {[%clk 0:00:26]} 17. Bxg7 {[%clk 0:01:19]}  Kxg7 {[%clk 0:00:26]} 18. Qd4+ {[%clk 0:01:19]}  f6 {[%clk 0:00:22]} 19. Rad1 {[%clk 0:01:17]}  fxe4 {[%clk 0:00:20]} 20. Qxe4 {[%clk 0:01:13]}  Bb7 {[%clk 0:00:19]} 21. Qf4 {[%clk 0:01:12]}  Rae8 {[%clk 0:00:10]} 22. Rd2 {[%clk 0:01:06]}  Qc5 {[%clk 0:00:06]} 23. Rfd1 {[%clk 0:01:04]}  Qe5 {[%clk 0:00:05]} 24. Qf2 {[%clk 0:00:56]}  Re7 {[%clk 0:00:04]} 25. Rxd6 {[%clk 0:00:54]}  Rfe8 {[%clk 0:00:04]} 26. Rd7 {[%clk 0:00:31]}  Rxd7 {[%clk 0:00:04]} 27. Rxd7+ {[%clk 0:00:31]}  Re7 {[%clk 0:00:04]} 28. Rxe7+ {[%clk 0:00:28]}  Qxe7 {[%clk 0:00:05]} 29. h3 {[%clk 0:00:27]}  h5 {[%clk 0:00:06]} 30. Kh2 {[%clk 0:00:25]}  Qe5+ {[%clk 0:00:06]} 31. Qg3 {[%clk 0:00:25]}  Qe4 {[%clk 0:00:06]} 32. Qc7+ {[%clk 0:00:24]}  Kh6 {[%clk 0:00:06]} 33. Qg3 {[%clk 0:00:24]}  h4 {[%clk 0:00:06]} 34. Qf2 {[%clk 0:00:23]}  Qe5+ {[%clk 0:00:06]} 35. Kg1 {[%clk 0:00:23]}  Qg5 {[%clk 0:00:04]} 36. Bd1 {[%clk 0:00:15]}  Kg7 {[%clk 0:00:02]} 37. Bf3 {[%clk 0:00:14]}  Qc1+ {[%clk 0:00:02]} 38. Kh2 {[%clk 0:00:15]}  Qf4+ {[%clk 0:00:02]} 39. Kg1 {[%clk 0:00:15]}  Bxf3 {[%clk 0:00:02]} 40. gxf3 {[%clk 0:00:13]}  Kh6 {[%clk 0:00:02]} 41. Kg2 {[%clk 0:00:13]}  Kg5 {[%clk 0:00:02]} 42. Qe1 {[%clk 0:00:13]}  Qe5 {[%clk 0:00:02]} 43. Qd2+ {[%clk 0:00:12]}  Kh5 {[%clk 0:00:02]} 44. Qd1 {[%clk 0:00:11]}  Qf4 {[%clk 0:00:02]} 45. Qe1 {[%clk 0:00:11]}  Qe5 {[%clk 0:00:01]} 46. Qf2 {[%clk 0:00:10]}  Qf4 {[%clk 0:00:02]} 47. Qe1 {[%clk 0:00:10]}  a5 {[%clk 0:00:02]} 48. b3 {[%clk 0:00:10]}  a4 {[%clk 0:00:02]} 49. bxa4 {[%clk 0:00:09]}  bxa4 {[%clk 0:00:03]} 50. Qf2 {[%clk 0:00:09]}  Qc4 {[%clk 0:00:03]} 51. Qd2 {[%clk 0:00:05]}  f5 {[%clk 0:00:03]} 52. a3 {[%clk 0:00:03]}  Qb3 {[%clk 0:00:02]} 53. Qe2 {[%clk 0:00:04]}  Qxc3 {[%clk 0:00:02]} 54. f4+ {[%clk 0:00:04]}  Kh6 {[%clk 0:00:02]} 55. Qf2 {[%clk 0:00:05]}  Kh5 {[%clk 0:00:02]} 56. Qe2+ {[%clk 0:00:05]}  Kh6 {[%clk 0:00:02]} 57. Qf2 {[%clk 0:00:06]}  g5 {[%clk 0:00:02]} 58. fxg5+ {[%clk 0:00:06]}  Kxg5 {[%clk 0:00:03]} 59. Qa7 {[%clk 0:00:05]}  Qc2+ {[%clk 0:00:02]} 60. Kf3 {[%clk 0:00:06]}  Qe4+ {[%clk 0:00:02]} 61. Kf2 {[%clk 0:00:06]}  Qc2+ {[%clk 0:00:02]} 62. Kf3 {[%clk 0:00:06]}  Qb3+ {[%clk 0:00:03]} 63. Kg2 {[%clk 0:00:06]}  Qb2+ {[%clk 0:00:03]} 64. Kf3 {[%clk 0:00:07]}  Qxa3+ {[%clk 0:00:04]} 65. Kf2 {[%clk 0:00:07]}  Qg3+ {[%clk 0:00:04]} 66. Ke2 {[%clk 0:00:07]}  Qg2+ {[%clk 0:00:04]} 67. Kd1 {[%clk 0:00:06]}  Qxh3 {[%clk 0:00:04]} 68. Qe7+ {[%clk 0:00:06]}  Kg4 {[%clk 0:00:04]} 69. Qg7+ {[%clk 0:00:06]}  Kf3 {[%clk 0:00:04]} 70. Qc3+ {[%clk 0:00:06]}  Kg2 {[%clk 0:00:04]} 71. Qd2+ {[%clk 0:00:06]}  Kh1 {[%clk 0:00:05]} 72. Qd5+ {[%clk 0:00:05]}  Qg2 {[%clk 0:00:04]} 73. Qxf5 {[%clk 0:00:05]}  h3 {[%clk 0:00:04]} 74. Qh5 {[%clk 0:00:05]}  h2 {[%clk 0:00:04]} 75. Ke1 {[%clk 0:00:05]}  Qe4+ {[%clk 0:00:03]} 76. Kf1 {[%clk 0:00:05]}  Qf4+ {[%clk 0:00:03]} 77. Ke1 {[%clk 0:00:04]}  Qg3+ {[%clk 0:00:03]} 78. Kf1 {[%clk 0:00:04]}  Qd3+ {[%clk 0:00:03]} 79. Kf2 {[%clk 0:00:04]}  Qd2+ {[%clk 0:00:03]} 80. Kf1 {[%clk 0:00:05]}  Qf4+ {[%clk 0:00:02]} 81. Ke1 {[%clk 0:00:05]}  Kg1 {[%clk 0:00:00]} 82. Qg6+ {[%clk 0:00:04]} 1-0


[Site "https://www.chess.com"]

[Event "Titled Tuesday Blitz May 9 Early 2023"]
[White "Nissinen, Niilo Man"]
[Black "Boldoo, Erdenepurev"]
[WhiteFideId "30950767"]
[BlackFideId "4901037"]
[WhiteElo "1952"]
[BlackElo "2299"]
[Result "0-1"]
[Round "11"]
[TimeControl "180+2"]
[Date "2023.05.09"]
[WhiteClock "0:00:04"]
[BlackClock "0:00:06"]

1. e4 {[%clk 0:03:00]}  e6 {[%clk 0:02:56]} 2. d4 {[%clk 0:03:00]}  d5 {[%clk 0:02:57]} 3. e5 {[%clk 0:03:01]}  c5 {[%clk 0:02:57]} 4. c3 {[%clk 0:03:01]}  Nc6 {[%clk 0:02:58]} 5. Nf3 {[%clk 0:03:01]}  Bd7 {[%clk 0:02:59]} 6. Na3 {[%clk 0:03:01]}  f6 {[%clk 0:02:55]} 7. Bd3 {[%clk 0:02:58]}  c4 {[%clk 0:02:53]} 8. Bc2 {[%clk 0:02:53]}  a6 {[%clk 0:02:35]} 9. b3 {[%clk 0:02:53]}  b5 {[%clk 0:02:33]} 10. Nb1 {[%clk 0:02:54]}  Qc7 {[%clk 0:02:32]} 11. a4 {[%clk 0:02:48]}  cxb3 {[%clk 0:02:24]} 12. Bxb3 {[%clk 0:02:47]}  Rb8 {[%clk 0:02:03]} 13. axb5 {[%clk 0:02:46]}  axb5 {[%clk 0:02:04]} 14. Bf4 {[%clk 0:02:44]}  f5 {[%clk 0:01:53]} 15. O-O {[%clk 0:02:42]}  h6 {[%clk 0:01:49]} 16. Nh4 {[%clk 0:02:34]}  Nge7 {[%clk 0:01:38]} 17. Qh5+ {[%clk 0:02:33]}  Kd8 {[%clk 0:01:37]} 18. Ng6 {[%clk 0:02:12]}  Be8 {[%clk 0:01:36]} 19. Nxf8 {[%clk 0:02:07]}  Rxf8 {[%clk 0:01:30]} 20. Qh3 {[%clk 0:02:03]}  Ng6 {[%clk 0:01:25]} 21. Bc1 {[%clk 0:02:00]}  b4 {[%clk 0:01:20]} 22. Ba4 {[%clk 0:01:47]}  Ra8 {[%clk 0:01:08]} 23. Bb2 {[%clk 0:01:30]}  Nxd4 {[%clk 0:00:57]} 24. cxd4 {[%clk 0:01:19]}  Rxa4 {[%clk 0:00:55]} 25. Qb3 {[%clk 0:00:54]}  Qc4 {[%clk 0:00:47]} 26. Nd2 {[%clk 0:00:49]}  Qxb3 {[%clk 0:00:45]} 27. Nxb3 {[%clk 0:00:50]}  Nf4 {[%clk 0:00:27]} 28. Rxa4 {[%clk 0:00:47]}  Bxa4 {[%clk 0:00:28]} 29. Nc5 {[%clk 0:00:48]}  Bb5 {[%clk 0:00:28]} 30. Ra1 {[%clk 0:00:46]}  Ke8 {[%clk 0:00:27]} 31. g3 {[%clk 0:00:44]}  Ne2+ {[%clk 0:00:24]} 32. Kg2 {[%clk 0:00:44]}  Kf7 {[%clk 0:00:19]} 33. Ra7+ {[%clk 0:00:44]}  Kg8 {[%clk 0:00:18]} 34. Nxe6 {[%clk 0:00:41]}  Rc8 {[%clk 0:00:15]} 35. Rxg7+ {[%clk 0:00:38]}  Kh8 {[%clk 0:00:16]} 36. Rb7 {[%clk 0:00:38]}  Rc2 {[%clk 0:00:09]} 37. Rxb5 {[%clk 0:00:35]}  Rxb2 {[%clk 0:00:09]} 38. Rb8+ {[%clk 0:00:25]}  Kh7 {[%clk 0:00:09]} 39. Nf8+ {[%clk 0:00:20]}  Kg7 {[%clk 0:00:08]} 40. e6 {[%clk 0:00:20]}  Kf6 {[%clk 0:00:06]} 41. Rb7 {[%clk 0:00:16]}  Nxd4 {[%clk 0:00:06]} 42. Rf7+ {[%clk 0:00:16]}  Kg5 {[%clk 0:00:04]} 43. e7 {[%clk 0:00:16]}  Re2 {[%clk 0:00:05]} 44. Rg7+ {[%clk 0:00:14]}  Kf6 {[%clk 0:00:05]} 45. Rg6+ {[%clk 0:00:09]}  Kf7 {[%clk 0:00:06]} 46. Rb6 {[%clk 0:00:09]}  b3 {[%clk 0:00:05]} 47. Rb4 {[%clk 0:00:04]}  b2 {[%clk 0:00:05]} 48. Ne6 {[%clk 0:00:02]}  Nxe6 {[%clk 0:00:04]} 49. e8=Q+ {[%clk 0:00:01]}  Kxe8 {[%clk 0:00:05]} 50. Kf3 {[%clk 0:00:02]}  Nd4+ {[%clk 0:00:04]} 51. Rxd4 {[%clk 0:00:02]}  b1=Q {[%clk 0:00:02]} 52. Kxe2 {[%clk 0:00:03]}  Qb2+ {[%clk 0:00:03]} 53. Ke3 {[%clk 0:00:03]}  Qc3+ {[%clk 0:00:03]} 54. Rd3 {[%clk 0:00:03]}  Qe5+ {[%clk 0:00:04]} 55. Kd2 {[%clk 0:00:04]}  Kf7 {[%clk 0:00:04]} 56. Re3 {[%clk 0:00:03]}  Qb2+ {[%clk 0:00:05]} 57. Ke1 {[%clk 0:00:03]}  d4 {[%clk 0:00:05]} 58. Re2 {[%clk 0:00:04]}  Qc1# {[%clk 0:00:06]} 0-1


[Site "https://www.chess.com"]